Cogmind - Beta 14 @@@ ROGUE MODE // 2024.10.13 @ 07:09:18 Player: laeb2 Result: Destroyed by GU-ODQ(R) with Subdweller Laser Performance ------------- Evolutions (0) 0 Regions Visited (2) 400 Robots Destroyed (24) 120 Value Destroyed (453) 453 Prototype IDs (0) 0 Alien Tech Used (0) 0 Bonus (0) 0 TOTAL SCORE: 973 Bonus ------- None Cogmind --------- Core Integrity 0/250 Matter 216/300 Energy 113/125 System Corruption 0% Temperature Cool (6) Movement Walking (190) Ox1 Location -10/Subcaves Parts ------- > --- POWER (1) -------- Light Ion Engine > --- PROPULSION (2) --- Aluminum Leg > --- UTILITY (2) ------ Medium Storage Unit > --- WEAPON (2) ------- Light Assault Rifle Light Assault Rifle > --- INVENTORY (10) --- Ion Engine Aluminum Leg Small Storage Unit Improved Terrain Scanner Peak State ------------ > --- POWER ------------ Makeshift Power Source > --- PROPULSION ------- Light Treads Light Treads > --- UTILITY ---------- Medium Storage Unit Improved Terrain Scanner > --- WEAPON ----------- Small Laser Battle Rifle > --- INVENTORY -------- Ion Engine Light Ion Engine Aluminum Leg Aluminum Leg Small Storage Unit Improved Terrain Scanner Assault Rifle Light Assault Rifle Light Assault Rifle Flamer [Rating: 14] Favorites ----------- Power Ion Engine Engine Ion Engine Propulsion Light Treads Treads Light Treads Leg Aluminum Leg Utility Improved Terrain Scanner Device Improved Terrain Scanner Storage Small Storage Unit Weapon Assault Rifle Energy Gun Medium Laser Ballistic Gun Assault Rifle Special Weapon Flamer Build | -11 -10 -10 ------- Run | Yrd Mat Sub Slots Evolved . | . . . Power . | . . . Propulsion . | . . . Utility . | . . . Weapon . | . . . Parts Attached 18 | 7 1 10 Power 3 | 1 . 2 Engine 3 | 1 . 2 Core . | . . . Reactor . | . . . Propulsion 3 | 2 . 1 Treads 2 | 2 . . Leg 1 | . . 1 Wheel . | . . . Hover . | . . . Flight . | . . . Utility 3 | 2 1 . Device 1 | 1 . . Storage 2 | 1 1 . Processor . | . . . Hackware . | . . . Protection . | . . . Artifact . | . . . Weapon 9 | 2 . 7 Energy Gun 2 | 1 . 1 Energy Cannon . | . . . Ballistic Gun 6 | 1 . 5 Ballistic Cannon . | . . . Launcher . | . . . Special Weapon 1 | . . 1 Impact Weapon . | . . . Slashing Weapon . | . . . Piercing Weapon . | . . . Special Melee Weapon . | . . . Unidentified Prototypes . | . . . Parts Lost 9 | . . 9 Power 1 | . . 1 Propulsion 2 | . . 2 Utility 1 | . . 1 Weapon 5 | . . 5 Highest Loss Streak 8 | . . 8 To Critical Strikes . | . . . Average Slot Usage (%) 98 | . 100 96 Engine 14 | . 14 14 Treads 27 | . 28 25 Device 13 | . 14 12 Storage 14 | . 14 14 Energy Gun 13 | . 14 13 Ballistic Gun 13 | . 14 13 Peak Build Rating 14 | 9 10 14 Average Rating 9 | 4 9 10 On Entrance 6 | . 9 10 Naked Turns . | . . . Heaviest Build 20 | 15 20 20 Greatest Support 40 | 40 40 40 Greatest Overweight (x) 2 | 2 . . Average Overweight (x) . | . . . Largest Inventory Capacity 10 | 8 10 10 Average Capacity 8 | 7 8 10 Most Carried 10 | 6 10 10 Average Carried 7 | 4 6 9 Final Capacity 10 | 8 10 10 Final Carried 10 | 4 10 4 Class Distribution -------------------- 100% | Mutant Dominant Class ---------------- Mutant | -10/Materials Mutant | -10/Subcaves Resources | -11 -10 -10 ----------- Run | Yrd Mat Sub Matter Collected 514 | 241 145 128 Remotely . | . . . Salvage Created 596 | 71 402 123 Parts 47 | 5 39 3 Haulers Intercepted . | . . . Recyclers Shooed . | . . . Parts Field Recycled . | . . . Retrieved Matter . | . . . Parts Self-Destructed 8 | . . 8 Prevented . | . . . Kills | -11 -10 -10 ------- Run | Yrd Mat Sub Combat Hostiles Destroyed 17 | . 14 3 Guns 17 | . 14 3 Classes Destroyed 7 | 2 4 1 Builder 1 | . 1 . Tunneler 2 | 1 1 . Recycler 1 | 1 . . Watcher 3 | . 3 . Swarmer 9 | . 9 . Grunt 5 | . 5 . Subdweller 3 | . . 3 Best Kill Streak 11 | 2 11 2 Combat Bots Only 7 | . 7 2 Max Kills in Single Turn 2 | 1 2 1 Gunslinging 1 | . 1 . Exploded . | . . . Melee . | . . . Uniques/NPCs Destroyed . | . . . Combat | -11 -10 -10 -------- Run | Yrd Mat Sub Hostile Shots Fired 108 | . 60 48 Missed 28 | . 17 11 Damage Taken 1214 | . 417 797 Core 254 | . 100 154 Absorbed by Shields . | . . . Core Remaining (%) 100 | 100 . . Volleys Fired 109 | 8 42 59 Largest 2 | 1 2 2 Hottest 125 | 50 70 125 Shots Fired 165 | 8 83 74 Gun 162 | 8 83 71 Cannon . | . . . Launcher . | . . . Special 3 | . . 3 Kinetic 95 | . 42 53 Thermal 70 | 8 41 21 Explosive . | . . . Electromagnetic . | . . . Robot Hit Streak 27 | 4 8 27 Robot Miss Streak 4 | 1 4 . Penetration Max . | . . . Secondary Targets 3 | . 3 . Max Gunslinging Chain 1 | . 1 . Shots Hit Robots 84 | 5 53 26 Core Hits 36 | 3 25 8 Critical Kills . | . . . Critical Parts Destroyed . | . . . Critical Strikes 9 | 2 6 1 Burn 9 | 2 6 1 Melee Attacks . | . . . Impact . | . . . Slashing . | . . . Piercing . | . . . Sneak Attacks . | . . . Combat Hostiles . | . . . Follow-up Attacks . | . . . Damage Inflicted 1063 | 63 684 316 Guns 1029 | 63 673 293 Cannons . | . . . Explosions . | . . . Melee . | . . . Ramming 11 | . 11 . Kinetic 497 | . 346 151 Thermal 555 | 63 327 165 Explosive . | . . . Electromagnetic . | . . . Impact . | . . . Slashing . | . . . Piercing . | . . . Highest Corruption . | . . . Average Corruption . | . . . Corruption Purged . | . . . Corruption Blocked . | . . . Overload Shots . | . . . Overflow Damage . | . . . Projectiles . | . . . Explosions . | . . . Melee . | . . . Knockbacks . | . . . Impact . | . . . Kinetic . | . . . Secondary . | . . . Self-Inflicted Damage . | . . . Shots . | . . . Rammed 5 | . 5 . Targets Rammed 5 | . 5 . Kicked . | . . . Crushed . | . . . Highest Temperature 122 | 60 122 51 Average Temperature 31 | 25 32 25 Received Heat Transfer 294 | . 150 144 Siege Activations . | . . . Robots Corrupted . | . . . Combat Hostiles . | . . . Parts Fried . | . . . Impact Corruptions . | . . . Robots Melted . | . . . Combat Hostiles . | . . . Parts Melted 3 | . 3 . Heat Transferred 2309 | 333 1406 570 Parts Sabotaged . | . . . Parts Stolen . | . . . Parts Stripped . | . . . Power Chain Reactions . | . . . Alert | -11 -10 -10 ------- Run | Yrd Mat Sub Peak Influence 399 | 10 399 . Initial 6 | . 6 . Average 215 | 4 238 . Maximum Alert Level 1 | . 1 . Low Security (%) 32 | 100 25 . Level 1 67 | . 75 . Level 2 . | . . . Level 3 . | . . . Level 4 . | . . . Level 5 . | . . . High Security . | . . . Max Security . | . . . Squads Dispatched 2 | . 2 . Investigation . | . . . Extermination . | . . . Reinforcement 2 | . 2 . Assault . | . . . Garrison . | . . . Intercept . | . . . Searches Triggered . | . . . Construction Impeded . | . . . Haulers Reinforced . | . . . Active Scanning Responses . | . . . Cargo Convoy Interrupts . | . . . Stealth | -11 -10 -10 --------- Run | Yrd Mat Sub Distress Signals 1 | . 1 . Communications Jammed . | . . . Distress Signals . | . . . Times Spotted 27 | . 22 5 Peak Tracking Total 6 | . 6 3 Tactical Retreats 2 | . 2 . Traps | -11 -10 -10 ------- Run | Yrd Mat Sub Traps Triggered . | . . . Indirectly . | . . . Trap Hack Attempts . | . . . Triggered . | . . . Disarmed . | . . . Reprogrammed . | . . . Reused . | . . . Traps Extracted . | . . . Installed . | . . . Triggered . | . . . Machines | -11 -10 -10 ---------- Run | Yrd Mat Sub Machines Disabled . | . . . Max in Single Turn . | . . . Machines Repaired . | . . . Machines Dismantled . | . . . Machines Sabotaged . | . . . Overloaded Fab Kills . | . . . Hacking | -11 -10 -10 --------- Run | Yrd Mat Sub Machines Accessed 1 | . 1 . Terminals 1 | . 1 . Fabricators . | . . . Repair Stations . | . . . Recycling Units . | . . . Scanalyzers . | . . . Garrison Access . | . . . Total Hacks 3 | . 3 . Successful 2 | . 2 . Failed . | . . . Catastrophic . | . . . Database Lockouts 1 | . 1 . Manual 3 | . 3 . Terminals 3 | . 3 . Fabricators . | . . . Repair Stations . | . . . Recycling Units . | . . . Scanalyzers . | . . . Garrison Access . | . . . Terminal Hacks 2 | . 2 . Robot Analysis 2 | . 2 . Fabricator Hacks . | . . . Repair Station Hacks . | . . . Recycling Unit Hacks . | . . . Scanalyzer . | . . . Garrison Access Hacks . | . . . Unauthorized Hacks . | . . . Terminals . | . . . Fabricators . | . . . Repair Stations . | . . . Recycling Units . | . . . Scanalyzers . | . . . Garrison Access . | . . . Data Cores Recovered . | . . . Used . | . . . Hacking Detections . | . . . Full Trace Events . | . . . Feedback Events . | . . . Feedback Blocked . | . . . Robot Schematics Acquired . | . . . Robots Built . | . . . Authchips . | . . . Time . | . . . Total Robot Build Rating . | . . . Part Schematics Acquired . | . . . Parts Built . | . . . Authchips . | . . . Time . | . . . Total Part Build Rating . | . . . Parts Repaired . | . . . Time . | . . . Parts Recycled . | . . . Recycled Matter . | . . . Retrieved Matter . | . . . Retrieved Components . | . . . Parts Scanalyzed . | . . . Part Schematics Acquired . | . . . Parts Damaged . | . . . Bothacking | -11 -10 -10 ------------ Run | Yrd Mat Sub Used RIF Installer . | . . . Robots Hacked . | . . . Non-combat . | . . . Combat . | . . . Robot Hacks Applied . | . . . Relay Couplers Released . | . . . Fabnet Peak Effective % . | . . . Robots Rewired . | . . . Allies Hacked . | . . . Hacks Repelled . | . . . Allies | -11 -10 -10 -------- Run | Yrd Mat Sub Total Allies . | . . . Largest Group . | . . . Highest-Rated Group . | . . . Highest-Rated Ally . | . . . Total Orders . | . . . Ally Attacks . | . . . Total Damage . | . . . Kills . | . . . Allies Corrupted . | . . . Allies Melted . | . . . Intel | -11 -10 -10 ------- Run | Yrd Mat Sub Robot Analysis Total 2 | . 2 . Derelict Logs Recovered 1 | . . 1 Drone Launches . | . . . Drone Recoveries . | . . . Exploration | -11 -10 -10 ------------- Run | Yrd Mat Sub Turns Passed 1241 | 91 844 306 Spaces Moved 299 | 41 160 98 Core 15 | 15 . . Treads 284 | 26 160 98 Legs . | . . . Wheels . | . . . Hover . | . . . Flight . | . . . Fastest Speed 50 | 50 160 160 Average Speed 155 | 124 160 160 Slowest Speed 160 | 160 160 160 Overloaded Moves . | . . . Propulsion Burnouts . | . . . Robots Hopped . | . . . Cave-ins Triggered . | . . . Exploration Rate (%) 14 | 4 30 9 Regions Visited 2 Branch Regions 1 Pre-discovered Areas 1 | . . 1 Known Exits Taken . | . . . Unknown Exits Taken 2 | 1 1 . Scrap Searched . | . . . Spaces Dug . | . . . Terrain Destroyed . | . . . Melee . | . . . Projectile . | . . . AOE . | . . . Terrain Rammed . | . . . Walls Destroyed . | . . . Machines Disabled . | . . . Actions | -11 -10 -10 --------- Run | Yrd Mat Sub Total 910 | 72 662 176 Wait 463 | 8 449 6 Move 297 | 40 159 98 Hop . | . . . Pick Up 16 | 9 6 1 Fast Attach 3 | 2 . 1 Attach 11 | 5 . 6 Detach . | . . . Swap 4 | . 1 3 Drop 2 | . . 2 Fire 109 | 8 42 59 Melee . | . . . Ram . | . . . Kick . | . . . Crush 5 | . 5 . Escape Stasis . | . . . Rewire . | . . . Trap . | . . . Miscellaneous . | . . . Route ------- -11/Scrapyard -10/Materials -10/Subcaves History --------- Turn | Location | Event 9 | -11/Scrapyard | Discovered new exit (range 16) 92 | -11/Scrapyard | Entered Materials 264 | -10/Materials | Destroyed 7 combat bots 311 | -10/Materials | Build established: Mutant 380 | -10/Materials | Central database locked down 438 | -10/Materials | Discovered new exit (range 10) 936 | -10/Materials | Entered Subcaves 1163 | -10/Subcaves | Shifting Twisted Machinery released Mak. Power Source 1168 | -10/Subcaves | Shifting Twisted Machinery released Flamer 1186 | -10/Subcaves | Learned location of Zion (-7) 1201 | -10/Subcaves | A Subdweller sparked back to life 1201 | -10/Subcaves | A Subdweller sparked back to life 1201 | -10/Subcaves | A Subdweller sparked back to life 1206 | -10/Subcaves | Core integrity fell below 50% 1238 | -10/Subcaves | Core integrity fell below 20% 1242 | -10/Subcaves | Destroyed by GU-ODQ(R) with Subdweller Laser Last Messages --------------- Dropped Ion Engine. Acquired derelict log, extracted data. World map updated: -7/Zion. GU-ODQ(R) creaks and sparks as it begins to move. HJ-SFG(R) creaks and sparks as it begins to move. 2Y-F3G(R) creaks and sparks as it begins to move. Imp. Terrain Scanner destroyed. Lgt. Treads destroyed. Sml. Laser destroyed. 2Y-F3G(R) destroyed. Flamer destroyed. Mak. Power Source destroyed. GU-ODQ(R) affixes Scrap Shield Fragment to Scrap Shield. Battle Rifle destroyed. Lgt. Treads destroyed. Assault Rifle destroyed. Map ----- +----------------------------------------------------+ | ?????????????????????????????????????????????????? | | ?????????????????????????????????????????????????? | | ?????????????????????????????????????????????????? | | ?????????????????????????????????????????????????? | | ?????????????????????????????????????????????????? | | ?????????????????????????????????????????????????? | | ?????????????????????????????????????????????????? | | ?????????????????????????????????????????????????? | | ?????????????????????????????????????????????????? | | ?????????????????????????????????????????????????? | | ?????????????????????????????????????????????????? | | ?????????????????????????????????????????????????? | | ?????????????????????????????????????????????????? | | ?????????????????????????????????????????????????? | | ?????????????????????????????????????????????????? | | ?????????????????????????????#???????????????????? | | ?????????????????????????????????????????????????? | | ???????????????????#?????????????????????????????? | | ??????????????????????#???????????? ?????????????? | | ?????????????????????????????????? ??????????????? | | ????????????????????????????????? ??????????????? | | ?????????????????????##?######### ???????????????? | | ????????????????????## ## # # # ????????????????? | | ???????????????????## # ?????????????????? | | ????????????????????# # ????????"""???????? | | ????????????????????# R @# #???????" " " ?????? | | ????????????????????# %### "#???????"""""" ????? | | ??????????????????#?## ## "######## " """????? | | ?????????????????####